[Event "Titled Tuesday Blitz August 22 Early 2023"]
[White "Zaichenko, Daria"]
[Black "Pein, Jonathan"]
[WhiteFideId "4197453"]
[BlackFideId "417092"]
[WhiteElo "2267"]
[BlackElo "2413"]
[Result "0-1"]
[Round "8"]
[TimeControl "180+1"]
[Date "2023.08.22"]
[WhiteClock "0:00:22"]
[BlackClock "0:00:07"]
[Board "158"]

1. e4 {[%clk 0:02:53]}  e5 {[%clk 0:02:54]} 2. Nf3 {[%clk 0:02:53]}  d6 {[%clk 0:02:54]} 3. d4 {[%clk 0:02:51]}  exd4 {[%clk 0:02:55]} 4. Nxd4 {[%clk 0:02:52]}  Nf6 {[%clk 0:02:56]} 5. Nc3 {[%clk 0:02:52]}  g6 {[%clk 0:02:57]} 6. Bc4 {[%clk 0:02:50]}  Bg7 {[%clk 0:02:57]} 7. O-O {[%clk 0:02:50]}  O-O {[%clk 0:02:58]} 8. h3 {[%clk 0:02:49]}  Nc6 {[%clk 0:02:58]} 9. Nxc6 {[%clk 0:02:49]}  bxc6 {[%clk 0:02:59]} 10. f4 {[%clk 0:02:49]}  Re8 {[%clk 0:02:59]} 11. Bd3 {[%clk 0:02:48]}  Rb8 {[%clk 0:02:56]} 12. Rb1 {[%clk 0:02:46]}  Nd7 {[%clk 0:02:54]} 13. Be3 {[%clk 0:02:44]}  c5 {[%clk 0:02:54]} 14. Qf3 {[%clk 0:02:35]}  Bb7 {[%clk 0:02:53]} 15. Nd5 {[%clk 0:02:32]}  Bxd5 {[%clk 0:02:51]} 16. f5 {[%clk 0:02:22]}  Ne5 {[%clk 0:02:45]} 17. Qg3 {[%clk 0:02:19]}  Bc6 {[%clk 0:02:23]} 18. fxg6 {[%clk 0:02:13]}  hxg6 {[%clk 0:02:22]} 19. Bg5 {[%clk 0:02:11]}  Qd7 {[%clk 0:02:21]} 20. Rf4 {[%clk 0:02:06]}  Nxd3 {[%clk 0:01:39]} 21. cxd3 {[%clk 0:02:05]}  Rxb2 {[%clk 0:01:38]} 22. Rbf1 {[%clk 0:02:02]}  f5 {[%clk 0:01:34]} 23. Qh4 {[%clk 0:01:55]}  Rxa2 {[%clk 0:01:25]} 24. R4f3 {[%clk 0:01:38]}  c4 {[%clk 0:01:22]} 25. Rg3 {[%clk 0:01:34]}  cxd3 {[%clk 0:01:06]} 26. exf5 {[%clk 0:01:34]}  Ree2 {[%clk 0:00:59]} 27. Qc4+ {[%clk 0:01:31]}  Kh8 {[%clk 0:00:42]} 28. Qh4+ {[%clk 0:01:27]}  Kg8 {[%clk 0:00:41]} 29. Qc4+ {[%clk 0:01:27]}  d5 {[%clk 0:00:27]} 30. Qb3 {[%clk 0:01:24]}  Rab2 {[%clk 0:00:18]} 31. Qxd3 {[%clk 0:01:18]}  d4 {[%clk 0:00:13]} 32. Rff3 {[%clk 0:00:59]}  Bxf3 {[%clk 0:00:11]} 33. Qxf3 {[%clk 0:00:57]}  Qxf5 {[%clk 0:00:11]} 34. Qa8+ {[%clk 0:00:52]}  Bf8 {[%clk 0:00:08]} 35. Bh6 {[%clk 0:00:48]}  Re1+ {[%clk 0:00:05]} 36. Kh2 {[%clk 0:00:49]}  Rbb1 {[%clk 0:00:05]} 37. Rf3 {[%clk 0:00:35]}  Qe5+ {[%clk 0:00:02]} 38. Bf4 {[%clk 0:00:34]}  Qe7 {[%clk 0:00:02]} 39. Bh6 {[%clk 0:00:29]}  Qd6+ {[%clk 0:00:02]} 40. Bf4 {[%clk 0:00:28]}  Qe7 {[%clk 0:00:03]} 41. Bh6 {[%clk 0:00:28]}  Rh1+ {[%clk 0:00:03]} 42. Kg3 {[%clk 0:00:28]}  Qd6+ {[%clk 0:00:03]} 43. Bf4 {[%clk 0:00:27]}  Qe7 {[%clk 0:00:04]} 44. Bh6 {[%clk 0:00:27]}  Rhf1 {[%clk 0:00:03]} 45. Bxf8 {[%clk 0:00:24]}  Rxf3+ {[%clk 0:00:03]} 46. Kxf3 {[%clk 0:00:24]}  Qxf8+ {[%clk 0:00:04]} 47. Qxf8+ {[%clk 0:00:23]}  Kxf8 {[%clk 0:00:04]} 48. Ke4 {[%clk 0:00:24]}  c5 {[%clk 0:00:05]} 49. Kd3 {[%clk 0:00:22]}  Rc1 {[%clk 0:00:05]} 50. g4 {[%clk 0:00:21]}  Rc3+ {[%clk 0:00:06]} 51. Kd2 {[%clk 0:00:21]}  a5 {[%clk 0:00:07]} 52. h4 {[%clk 0:00:21]}  a4 {[%clk 0:00:08]} 53. h5 {[%clk 0:00:22]}  a3 {[%clk 0:00:09]} 54. h6 {[%clk 0:00:22]}  Rh3 {[%clk 0:00:08]} 55. g5 {[%clk 0:00:22]}  a2 {[%clk 0:00:08]} 56. Kc2 {[%clk 0:00:22]}  c4 {[%clk 0:00:07]} 0-1


[Site "https://www.chess.com"]

[Event "Titled Tuesday Blitz August 22 Early 2023"]
[White "Kaminski, Victor"]
[Black "SergioMoralesG"]
[WhiteFideId "1131630"]
[WhiteElo "2266"]
[BlackElo "2407"]
[Result "1/2-1/2"]
[Round "8"]
[TimeControl "180+1"]
[Date "2023.08.22"]
[WhiteClock "0:00:08"]
[BlackClock "0:00:05"]
[Board "159"]

1. e4 {[%clk 0:02:59]}  c5 {[%clk 0:02:59]} 2. Nf3 {[%clk 0:02:58]}  e6 {[%clk 0:02:59]} 3. d4 {[%clk 0:02:58]}  cxd4 {[%clk 0:03:00]} 4. Nxd4 {[%clk 0:02:59]}  Nc6 {[%clk 0:03:01]} 5. Nc3 {[%clk 0:02:59]}  Qc7 {[%clk 0:03:01]} 6. g4 {[%clk 0:02:59]}  a6 {[%clk 0:03:00]} 7. h4 {[%clk 0:02:59]}  b5 {[%clk 0:02:57]} 8. a3 {[%clk 0:02:45]}  Bb7 {[%clk 0:02:54]} 9. Rh3 {[%clk 0:02:44]}  Nge7 {[%clk 0:02:45]} 10. Be3 {[%clk 0:02:19]}  Ne5 {[%clk 0:02:44]} 11. Rg3 {[%clk 0:02:10]}  N7c6 {[%clk 0:02:24]} 12. Qd2 {[%clk 0:01:57]}  Na5 {[%clk 0:02:21]} 13. f4 {[%clk 0:01:30]}  Nec4 {[%clk 0:02:17]} 14. Bxc4 {[%clk 0:01:30]}  Nxc4 {[%clk 0:02:18]} 15. Qc1 {[%clk 0:01:31]}  b4 {[%clk 0:02:13]} 16. axb4 {[%clk 0:01:27]}  Bxb4 {[%clk 0:02:14]} 17. Kf2 {[%clk 0:01:16]}  Nxb2 {[%clk 0:01:53]} 18. Ncb5 {[%clk 0:01:00]}  axb5 {[%clk 0:01:48]} 19. Rxa8+ {[%clk 0:00:56]}  Bxa8 {[%clk 0:01:49]} 20. Qxb2 {[%clk 0:00:56]}  Bc3 {[%clk 0:01:41]} 21. Nxb5 {[%clk 0:00:39]}  Bxb2 {[%clk 0:01:20]} 22. Nxc7+ {[%clk 0:00:38]}  Ke7 {[%clk 0:01:20]} 23. Nxa8 {[%clk 0:00:23]}  Rxa8 {[%clk 0:01:21]} 24. Bd2 {[%clk 0:00:19]}  Ra2 {[%clk 0:00:54]} 25. Bb4+ {[%clk 0:00:16]}  Kd8 {[%clk 0:00:33]} 26. Ke1 {[%clk 0:00:04]}  Bf6 {[%clk 0:00:22]} 27. g5 {[%clk 0:00:03]}  Be7 {[%clk 0:00:20]} 28. Bxe7+ {[%clk 0:00:03]}  Kxe7 {[%clk 0:00:20]} 29. Rc3 {[%clk 0:00:02]}  f6 {[%clk 0:00:14]} 30. Kd2 {[%clk 0:00:02]}  fxg5 {[%clk 0:00:14]} 31. hxg5 {[%clk 0:00:03]}  Kf7 {[%clk 0:00:12]} 32. Ke3 {[%clk 0:00:03]}  h6 {[%clk 0:00:10]} 33. Rd3 {[%clk 0:00:03]}  Ke7 {[%clk 0:00:10]} 34. gxh6 {[%clk 0:00:03]}  gxh6 {[%clk 0:00:11]} 35. c3 {[%clk 0:00:04]}  Rh2 {[%clk 0:00:10]} 36. Kd4 {[%clk 0:00:04]}  Rf2 {[%clk 0:00:09]} 37. Ke5 {[%clk 0:00:04]}  Rh2 {[%clk 0:00:06]} 38. f5 {[%clk 0:00:04]}  exf5 {[%clk 0:00:06]} 39. exf5 {[%clk 0:00:05]}  Re2+ {[%clk 0:00:07]} 40. Kf4 {[%clk 0:00:04]}  d6 {[%clk 0:00:07]} 41. Rg3 {[%clk 0:00:04]}  Kf7 {[%clk 0:00:06]} 42. Rg6 {[%clk 0:00:04]}  Rf2+ {[%clk 0:00:06]} 43. Ke4 {[%clk 0:00:03]}  Rc2 {[%clk 0:00:04]} 44. Kd3 {[%clk 0:00:03]}  Rh2 {[%clk 0:00:03]} 45. Rxd6 {[%clk 0:00:03]}  h5 {[%clk 0:00:04]} 46. Rh6 {[%clk 0:00:03]}  h4 {[%clk 0:00:04]} 47. Kc4 {[%clk 0:00:03]}  h3 {[%clk 0:00:04]} 48. Kc5 {[%clk 0:00:04]}  Rf2 {[%clk 0:00:03]} 49. Rxh3 {[%clk 0:00:03]}  Rxf5+ {[%clk 0:00:03]} 50. Kb4 {[%clk 0:00:03]}  Ke7 {[%clk 0:00:03]} 51. Rd3 {[%clk 0:00:03]}  Rf6 {[%clk 0:00:02]} 52. c4 {[%clk 0:00:04]}  Rd6 {[%clk 0:00:02]} 53. Rxd6 {[%clk 0:00:03]}  Kxd6 {[%clk 0:00:03]} 54. Kb5 {[%clk 0:00:04]}  Kd7 {[%clk 0:00:03]} 55. Kc5 {[%clk 0:00:05]}  Kc7 {[%clk 0:00:03]} 56. Kd5 {[%clk 0:00:06]}  Kd7 {[%clk 0:00:03]} 57. c5 {[%clk 0:00:06]}  Kc7 {[%clk 0:00:04]} 58. c6 {[%clk 0:00:06]}  Kc8 {[%clk 0:00:04]} 59. Kd6 {[%clk 0:00:06]}  Kd8 {[%clk 0:00:05]} 60. c7+ {[%clk 0:00:07]}  Kc8 {[%clk 0:00:05]} 61. Kc6 {[%clk 0:00:08]} 1/2-1/2


[Site "https://www.chess.com"]

[Event "Titled Tuesday Blitz August 22 Early 2023"]
[White "ZeGood_ZeBad_ZeUgly"]
[Black "Efremov, Vladislav"]
[BlackFideId "44159935"]
[WhiteElo "2258"]
[BlackElo "2377"]
[Result "0-1"]
[Round "8"]
[TimeControl "180+1"]
[Date "2023.08.22"]
[WhiteClock "0:00:00"]
[BlackClock "0:00:19"]
[Board "161"]

1. d4 {[%clk 0:03:00]}  Nf6 {[%clk 0:03:00]} 2. c4 {[%clk 0:03:00]}  g6 {[%clk 0:03:00]} 3. f3 {[%clk 0:02:57]}  Bg7 {[%clk 0:02:59]} 4. e4 {[%clk 0:02:56]}  d6 {[%clk 0:03:00]} 5. Nc3 {[%clk 0:02:53]}  O-O {[%clk 0:03:00]} 6. Nge2 {[%clk 0:02:52]}  a6 {[%clk 0:02:54]} 7. Be3 {[%clk 0:02:47]}  c6 {[%clk 0:02:53]} 8. a4 {[%clk 0:02:40]}  a5 {[%clk 0:02:51]} 9. g4 {[%clk 0:02:32]}  Na6 {[%clk 0:02:47]} 10. g5 {[%clk 0:02:22]}  Nd7 {[%clk 0:02:42]} 11. Ng3 {[%clk 0:02:16]}  e5 {[%clk 0:02:41]} 12. h4 {[%clk 0:02:09]}  Nb4 {[%clk 0:02:41]} 13. d5 {[%clk 0:02:02]}  cxd5 {[%clk 0:02:36]} 14. exd5 {[%clk 0:01:55]}  f5 {[%clk 0:02:34]} 15. gxf6 {[%clk 0:01:54]}  Qxf6 {[%clk 0:02:34]} 16. Be2 {[%clk 0:01:40]}  h6 {[%clk 0:02:33]} 17. Nce4 {[%clk 0:01:39]}  Qe7 {[%clk 0:02:33]} 18. h5 {[%clk 0:01:35]}  g5 {[%clk 0:02:33]} 19. Qd2 {[%clk 0:01:31]}  Nf6 {[%clk 0:02:28]} 20. O-O-O {[%clk 0:01:21]}  Bd7 {[%clk 0:02:24]} 21. Nxf6+ {[%clk 0:01:19]}  Bxf6 {[%clk 0:02:23]} 22. b3 {[%clk 0:01:12]}  Rac8 {[%clk 0:02:17]} 23. Ne4 {[%clk 0:01:06]}  Bf5 {[%clk 0:02:11]} 24. Kb2 {[%clk 0:01:02]}  Qh7 {[%clk 0:02:00]} 25. Nxd6 {[%clk 0:00:35]}  Rcd8 {[%clk 0:01:44]} 26. Nxf5 {[%clk 0:00:25]}  Qxf5 {[%clk 0:01:44]} 27. Kc1 {[%clk 0:00:15]}  e4 {[%clk 0:00:58]} 28. fxe4 {[%clk 0:00:12]}  Qxe4 {[%clk 0:00:57]} 29. Rhe1 {[%clk 0:00:06]}  Rfe8 {[%clk 0:00:39]} 30. Bd4 {[%clk 0:00:06]}  Bxd4 {[%clk 0:00:24]} 31. Qxd4 {[%clk 0:00:07]}  Qe3+ {[%clk 0:00:25]} 32. Qxe3 {[%clk 0:00:06]}  Rxe3 {[%clk 0:00:26]} 33. Bg4 {[%clk 0:00:04]}  Rxb3 {[%clk 0:00:20]} 34. Re7 {[%clk 0:00:02]}  Rc3+ {[%clk 0:00:19]} 35. Kb2 {[%clk 0:00:00]}  Rxc4 {[%clk 0:00:19]} 0-1


[Site "https://www.chess.com"]

[Event "Titled Tuesday Blitz August 22 Early 2023"]
[White "Pavlidou, Ekaterini"]
[Black "Tharushi, T H D Niklesha"]
[WhiteFideId "4213262"]
[BlackFideId "9918264"]
[WhiteElo "2356"]
[BlackElo "2195"]
[Result "1-0"]
[Round "8"]
[TimeControl "180+1"]
[Date "2023.08.22"]
[WhiteClock "0:01:21"]
[BlackClock "0:00:47"]
[Board "163"]

1. d4 {[%clk 0:03:00]}  Nf6 {[%clk 0:02:59]} 2. c4 {[%clk 0:03:00]}  e6 {[%clk 0:02:59]} 3. Nc3 {[%clk 0:03:00]}  Bb4 {[%clk 0:02:59]} 4. e3 {[%clk 0:03:01]}  b6 {[%clk 0:02:57]} 5. Bd2 {[%clk 0:02:56]}  Bb7 {[%clk 0:02:50]} 6. Nf3 {[%clk 0:02:56]}  O-O {[%clk 0:02:50]} 7. Bd3 {[%clk 0:02:52]}  d6 {[%clk 0:02:47]} 8. a3 {[%clk 0:02:51]}  Bxc3 {[%clk 0:02:47]} 9. Bxc3 {[%clk 0:02:52]}  Nbd7 {[%clk 0:02:37]} 10. Qc2 {[%clk 0:02:52]}  Qe7 {[%clk 0:02:35]} 11. O-O-O {[%clk 0:02:50]}  e5 {[%clk 0:02:35]} 12. Nd2 {[%clk 0:02:42]}  c5 {[%clk 0:02:27]} 13. d5 {[%clk 0:02:41]}  a5 {[%clk 0:02:26]} 14. e4 {[%clk 0:02:40]}  Ba6 {[%clk 0:02:23]} 15. Nf1 {[%clk 0:02:38]}  Rfb8 {[%clk 0:02:21]} 16. a4 {[%clk 0:02:36]}  Rf8 {[%clk 0:02:13]} 17. Ne3 {[%clk 0:02:36]}  g6 {[%clk 0:02:12]} 18. g4 {[%clk 0:02:36]}  Bc8 {[%clk 0:02:11]} 19. f3 {[%clk 0:02:36]}  Nb8 {[%clk 0:02:10]} 20. h4 {[%clk 0:02:32]}  Na6 {[%clk 0:02:10]} 21. Qh2 {[%clk 0:02:21]}  Bd7 {[%clk 0:02:09]} 22. b3 {[%clk 0:02:19]}  Nb4 {[%clk 0:02:07]} 23. h5 {[%clk 0:02:13]}  Rfb8 {[%clk 0:01:56]} 24. Be1 {[%clk 0:02:07]}  b5 {[%clk 0:01:47]} 25. cxb5 {[%clk 0:02:02]}  Qf8 {[%clk 0:01:22]} 26. Bh4 {[%clk 0:01:55]}  Qh6 {[%clk 0:01:17]} 27. g5 {[%clk 0:01:52]}  Qxh5 {[%clk 0:01:15]} 28. gxf6 {[%clk 0:01:48]}  h6 {[%clk 0:01:05]} 29. Bg3 {[%clk 0:01:28]}  Qxh2 {[%clk 0:00:59]} 30. Rxh2 {[%clk 0:01:27]}  h5 {[%clk 0:01:00]} 31. Nc4 {[%clk 0:01:22]}  Na2+ {[%clk 0:00:47]} 32. Rxa2 {[%clk 0:01:21]} 1-0


[Site "https://www.chess.com"]

[Event "Titled Tuesday Blitz August 22 Early 2023"]
[White "Acikel, Mert"]
[Black "Hnydiuk, Aleksander"]
[WhiteFideId "12956465"]
[BlackFideId "1109057"]
[WhiteElo "2304"]
[BlackElo "2523"]
[Result "1-0"]
[Round "8"]
[TimeControl "180+1"]
[Date "2023.08.22"]
[WhiteClock "0:00:36"]
[BlackClock "0:00:00"]
[Board "166"]

1. e4 {[%clk 0:03:00]}  g6 {[%clk 0:02:23]} 2. d4 {[%clk 0:02:55]}  Bg7 {[%clk 0:02:20]} 3. Nc3 {[%clk 0:02:55]}  d6 {[%clk 0:02:13]} 4. Be3 {[%clk 0:02:47]}  Nf6 {[%clk 0:02:12]} 5. Nf3 {[%clk 0:02:41]}  O-O {[%clk 0:02:02]} 6. Be2 {[%clk 0:02:39]}  a6 {[%clk 0:01:58]} 7. h3 {[%clk 0:02:37]}  b5 {[%clk 0:01:57]} 8. e5 {[%clk 0:02:33]}  Nfd7 {[%clk 0:01:51]} 9. exd6 {[%clk 0:02:18]}  cxd6 {[%clk 0:01:46]} 10. O-O {[%clk 0:02:16]}  Bb7 {[%clk 0:01:45]} 11. a3 {[%clk 0:02:13]}  Nc6 {[%clk 0:01:43]} 12. Re1 {[%clk 0:02:10]}  e5 {[%clk 0:01:40]} 13. dxe5 {[%clk 0:02:09]}  Ncxe5 {[%clk 0:01:35]} 14. Nd5 {[%clk 0:02:04]}  Rc8 {[%clk 0:01:31]} 15. c3 {[%clk 0:02:03]}  Nc4 {[%clk 0:01:17]} 16. Bg5 {[%clk 0:01:55]}  f6 {[%clk 0:01:12]} 17. Ne7+ {[%clk 0:01:53]}  Kh8 {[%clk 0:00:48]} 18. Nxc8 {[%clk 0:01:53]}  fxg5 {[%clk 0:00:35]} 19. Nxd6 {[%clk 0:01:47]}  Nxb2 {[%clk 0:00:21]} 20. Nxb7 {[%clk 0:01:46]}  Nxd1 {[%clk 0:00:20]} 21. Nxd8 {[%clk 0:01:45]}  Nxc3 {[%clk 0:00:19]} 22. Ne6 {[%clk 0:01:12]}  Nxe2+ {[%clk 0:00:18]} 23. Rxe2 {[%clk 0:01:12]}  Bxa1 {[%clk 0:00:19]} 24. Nxf8 {[%clk 0:01:12]}  Nxf8 {[%clk 0:00:19]} 25. Re8 {[%clk 0:00:59]}  Kg7 {[%clk 0:00:18]} 26. Nxg5 {[%clk 0:00:57]}  Bb2 {[%clk 0:00:16]} 27. Ne6+ {[%clk 0:00:51]}  Nxe6 {[%clk 0:00:15]} 28. Rxe6 {[%clk 0:00:52]}  a5 {[%clk 0:00:14]} 29. Rb6 {[%clk 0:00:47]}  Bxa3 {[%clk 0:00:14]} 30. Rxb5 {[%clk 0:00:47]}  Bb4 {[%clk 0:00:15]} 31. f4 {[%clk 0:00:46]}  h5 {[%clk 0:00:12]} 32. g4 {[%clk 0:00:46]}  hxg4 {[%clk 0:00:11]} 33. hxg4 {[%clk 0:00:47]}  Bd2 {[%clk 0:00:11]} 34. Kg2 {[%clk 0:00:39]}  a4 {[%clk 0:00:05]} 35. Rb2 {[%clk 0:00:39]}  Bxf4 {[%clk 0:00:03]} 36. Ra2 {[%clk 0:00:39]}  Kf6 {[%clk 0:00:02]} 37. Kf3 {[%clk 0:00:39]}  Ke5 {[%clk 0:00:01]} 38. Rxa4 {[%clk 0:00:39]}  Bd2 {[%clk 0:00:00]} 39. Rc4 {[%clk 0:00:36]} 1-0


[Site "https://www.chess.com"]

[Event "Titled Tuesday Blitz August 22 Early 2023"]
[White "Goffredo_Fofi"]
[Black "Blokhin, Sofia"]
[BlackFideId "4508190"]
[WhiteElo "2480"]
[BlackElo "2295"]
[Result "1-0"]
[Round "8"]
[TimeControl "180+1"]
[Date "2023.08.22"]
[WhiteClock "0:00:13"]
[BlackClock "0:00:06"]
[Board "167"]

1. d4 {[%clk 0:02:59]}  f5 {[%clk 0:02:59]} 2. g4 {[%clk 0:02:58]}  fxg4 {[%clk 0:02:58]} 3. h3 {[%clk 0:02:58]}  d5 {[%clk 0:02:57]} 4. Nc3 {[%clk 0:02:56]}  Nf6 {[%clk 0:02:56]} 5. Bf4 {[%clk 0:02:52]}  c6 {[%clk 0:02:46]} 6. hxg4 {[%clk 0:02:47]}  Bxg4 {[%clk 0:02:45]} 7. f3 {[%clk 0:02:47]}  Bf5 {[%clk 0:02:43]} 8. Qd2 {[%clk 0:02:47]}  Na6 {[%clk 0:02:38]} 9. Bg2 {[%clk 0:02:47]}  e6 {[%clk 0:02:32]} 10. e4 {[%clk 0:02:46]}  Bg6 {[%clk 0:02:26]} 11. Nge2 {[%clk 0:02:41]}  Bb4 {[%clk 0:02:18]} 12. a3 {[%clk 0:02:40]}  Ba5 {[%clk 0:02:11]} 13. e5 {[%clk 0:02:14]}  Nd7 {[%clk 0:02:04]} 14. b4 {[%clk 0:02:12]}  Bb6 {[%clk 0:02:02]} 15. Bg5 {[%clk 0:02:06]}  Qc8 {[%clk 0:01:54]} 16. Bh3 {[%clk 0:02:05]}  Nf8 {[%clk 0:01:51]} 17. Nf4 {[%clk 0:02:02]}  Bf5 {[%clk 0:01:44]} 18. Nh5 {[%clk 0:01:52]}  Bxh3 {[%clk 0:01:39]} 19. Rxh3 {[%clk 0:01:53]}  Qd7 {[%clk 0:01:34]} 20. O-O-O {[%clk 0:01:46]}  Nc7 {[%clk 0:01:28]} 21. Na4 {[%clk 0:01:30]}  Nb5 {[%clk 0:01:18]} 22. c3 {[%clk 0:01:01]}  Bd8 {[%clk 0:01:13]} 23. Nc5 {[%clk 0:00:54]}  Bxg5 {[%clk 0:00:56]} 24. Qxg5 {[%clk 0:00:52]}  Qe7 {[%clk 0:00:46]} 25. Nxg7+ {[%clk 0:00:48]}  Kf7 {[%clk 0:00:34]} 26. Qh6 {[%clk 0:00:27]}  b6 {[%clk 0:00:21]} 27. Nd3 {[%clk 0:00:18]}  Ng6 {[%clk 0:00:20]} 28. Nh5 {[%clk 0:00:16]}  Rag8 {[%clk 0:00:17]} 29. Kb2 {[%clk 0:00:14]}  a5 {[%clk 0:00:16]} 30. Nf6 {[%clk 0:00:14]}  axb4 {[%clk 0:00:16]} 31. axb4 {[%clk 0:00:13]}  Ra8 {[%clk 0:00:12]} 32. Rg1 {[%clk 0:00:09]}  Qa7 {[%clk 0:00:11]} 33. Qxh7+ {[%clk 0:00:08]}  Rxh7 {[%clk 0:00:10]} 34. Rxh7+ {[%clk 0:00:09]}  Kf8 {[%clk 0:00:08]} 35. Rxa7 {[%clk 0:00:09]}  Rxa7 {[%clk 0:00:08]} 36. Rxg6 {[%clk 0:00:10]}  Rg7 {[%clk 0:00:07]} 37. Rxg7 {[%clk 0:00:09]}  Kxg7 {[%clk 0:00:07]} 38. Nf4 {[%clk 0:00:10]}  Nc7 {[%clk 0:00:06]} 39. Ng4 {[%clk 0:00:07]}  b5 {[%clk 0:00:05]} 40. Kc2 {[%clk 0:00:08]}  Kf7 {[%clk 0:00:04]} 41. Nf2 {[%clk 0:00:07]}  Ke7 {[%clk 0:00:04]} 42. N2d3 {[%clk 0:00:07]}  Kf7 {[%clk 0:00:05]} 43. Nc5 {[%clk 0:00:08]}  Ke7 {[%clk 0:00:05]} 44. Ncxe6 {[%clk 0:00:09]}  Nxe6 {[%clk 0:00:04]} 45. Nxe6 {[%clk 0:00:09]}  Kxe6 {[%clk 0:00:05]} 46. Kd3 {[%clk 0:00:09]}  Kf5 {[%clk 0:00:05]} 47. Ke3 {[%clk 0:00:10]}  Ke6 {[%clk 0:00:05]} 48. f4 {[%clk 0:00:11]}  Kf5 {[%clk 0:00:06]} 49. Kf3 {[%clk 0:00:12]}  Ke6 {[%clk 0:00:06]} 50. Kg4 {[%clk 0:00:12]}  Kf7 {[%clk 0:00:07]} 51. f5 {[%clk 0:00:13]}  Ke7 {[%clk 0:00:07]} 52. Kg5 {[%clk 0:00:14]}  Kf7 {[%clk 0:00:06]} 53. e6+ {[%clk 0:00:14]}  Ke8 {[%clk 0:00:06]} 54. f6 {[%clk 0:00:14]}  Kf8 {[%clk 0:00:07]} 55. f7 {[%clk 0:00:12]}  c5 {[%clk 0:00:06]} 56. Kf6 {[%clk 0:00:12]}  cxb4 {[%clk 0:00:06]} 57. e7# {[%clk 0:00:13]} 1-0


[Site "https://www.chess.com"]

[Event "Titled Tuesday Blitz August 22 Early 2023"]
[White "Bazilius, Augustinas"]
[Black "Wang, Alexander J"]
[WhiteFideId "12832251"]
[BlackFideId "30955270"]
[WhiteElo "2460"]
[BlackElo "2287"]
[Result "1-0"]
[Round "8"]
[TimeControl "180+1"]
[Date "2023.08.22"]
[WhiteClock "0:01:07"]
[BlackClock "0:00:56"]
[Board "168"]

1. d4 {[%clk 0:03:00]}  Nf6 {[%clk 0:02:47]} 2. c4 {[%clk 0:02:52]}  g6 {[%clk 0:02:47]} 3. Nf3 {[%clk 0:02:53]}  Bg7 {[%clk 0:02:41]} 4. g3 {[%clk 0:02:53]}  O-O {[%clk 0:02:34]} 5. Bg2 {[%clk 0:02:54]}  d6 {[%clk 0:02:34]} 6. O-O {[%clk 0:02:54]}  c5 {[%clk 0:02:32]} 7. Nc3 {[%clk 0:02:50]}  Nc6 {[%clk 0:02:31]} 8. e4 {[%clk 0:02:48]}  Bg4 {[%clk 0:02:23]} 9. dxc5 {[%clk 0:02:42]}  dxc5 {[%clk 0:02:21]} 10. Be3 {[%clk 0:02:43]}  Nd4 {[%clk 0:02:13]} 11. Bxd4 {[%clk 0:02:40]}  cxd4 {[%clk 0:02:14]} 12. Qxd4 {[%clk 0:02:34]}  Qxd4 {[%clk 0:01:50]} 13. Nxd4 {[%clk 0:02:35]}  Nxe4 {[%clk 0:01:47]} 14. Bxe4 {[%clk 0:02:28]}  Bxd4 {[%clk 0:01:46]} 15. Rac1 {[%clk 0:01:45]}  Rab8 {[%clk 0:01:37]} 16. b3 {[%clk 0:01:43]}  e6 {[%clk 0:01:26]} 17. Kg2 {[%clk 0:01:30]}  Bf5 {[%clk 0:01:17]} 18. Bf3 {[%clk 0:01:23]}  a6 {[%clk 0:01:14]} 19. g4 {[%clk 0:01:06]}  Bd3 {[%clk 0:01:06]} 20. Rfd1 {[%clk 0:01:06]}  Bxc3 {[%clk 0:00:56]} 21. Rxc3 {[%clk 0:01:07]} 1-0


[Site "https://www.chess.com"]

[Event "Titled Tuesday Blitz August 22 Early 2023"]
[White "GAO"]
[Black "Derichs, Roger"]
[BlackFideId "4630076"]
[WhiteElo "2285"]
[BlackElo "2431"]
[Result "1/2-1/2"]
[Round "8"]
[TimeControl "180+1"]
[Date "2023.08.22"]
[WhiteClock "0:00:10"]
[BlackClock "0:00:19"]
[Board "169"]

1. e4 {[%clk 0:03:00]}  d6 {[%clk 0:02:56]} 2. d4 {[%clk 0:02:59]}  Nf6 {[%clk 0:02:56]} 3. Nc3 {[%clk 0:02:58]}  e5 {[%clk 0:02:56]} 4. Nf3 {[%clk 0:02:53]}  Nbd7 {[%clk 0:02:55]} 5. Bc4 {[%clk 0:02:52]}  Be7 {[%clk 0:02:55]} 6. O-O {[%clk 0:02:52]}  O-O {[%clk 0:02:55]} 7. a4 {[%clk 0:02:49]}  a5 {[%clk 0:02:54]} 8. Re1 {[%clk 0:02:44]}  c6 {[%clk 0:02:54]} 9. h3 {[%clk 0:02:43]}  Nb6 {[%clk 0:02:46]} 10. Bb3 {[%clk 0:02:41]}  exd4 {[%clk 0:02:41]} 11. Nxd4 {[%clk 0:02:42]}  Nfd7 {[%clk 0:02:40]} 12. Nf5 {[%clk 0:02:39]}  Nc5 {[%clk 0:02:40]} 13. Nxe7+ {[%clk 0:02:23]}  Qxe7 {[%clk 0:02:40]} 14. Bf4 {[%clk 0:02:23]}  Rd8 {[%clk 0:02:39]} 15. Qh5 {[%clk 0:02:18]}  Nxb3 {[%clk 0:02:36]} 16. cxb3 {[%clk 0:02:15]}  Be6 {[%clk 0:02:35]} 17. e5 {[%clk 0:02:00]}  dxe5 {[%clk 0:02:23]} 18. Qxe5 {[%clk 0:01:57]}  Qb4 {[%clk 0:02:04]} 19. Qg5 {[%clk 0:01:29]}  f6 {[%clk 0:01:33]} 20. Qg3 {[%clk 0:01:24]}  Bf7 {[%clk 0:01:24]} 21. Re7 {[%clk 0:01:14]}  Nd5 {[%clk 0:01:18]} 22. Nxd5 {[%clk 0:01:11]}  Rxd5 {[%clk 0:01:18]} 23. Bh6 {[%clk 0:01:01]}  g6 {[%clk 0:00:56]} 24. Rae1 {[%clk 0:00:56]}  Qd6 {[%clk 0:00:48]} 25. Qxd6 {[%clk 0:00:47]}  Rxd6 {[%clk 0:00:47]} 26. Rxb7 {[%clk 0:00:47]}  Re6 {[%clk 0:00:38]} 27. Rd1 {[%clk 0:00:36]}  Be8 {[%clk 0:00:23]} 28. Rg7+ {[%clk 0:00:33]}  Kh8 {[%clk 0:00:24]} 29. Rc7 {[%clk 0:00:24]}  g5 {[%clk 0:00:22]} 30. g4 {[%clk 0:00:14]}  Kg8 {[%clk 0:00:21]} 31. Rg7+ {[%clk 0:00:13]}  Kh8 {[%clk 0:00:21]} 32. Rc7 {[%clk 0:00:13]}  Kg8 {[%clk 0:00:21]} 33. Rg7+ {[%clk 0:00:12]}  Kh8 {[%clk 0:00:21]} 34. Rb7 {[%clk 0:00:11]}  Kg8 {[%clk 0:00:19]} 35. Rg7+ {[%clk 0:00:10]} 1/2-1/2


[Site "https://www.chess.com"]